[Event "Titled Tuesday Blitz April 11 Late 2023"]
[White "Bas Mas, Jose Joaquin"]
[Black "Moreira, Ronaldo Alonso"]
[WhiteFideId "22219064"]
[BlackFideId "2110547"]
[WhiteElo "2233"]
[BlackElo "2037"]
[Result "1-0"]
[Round "08"]
[TimeControl "180+2"]
[Date "2023.04.11"]
[WhiteClock "0:00:13"]
[BlackClock "0:00:01"]

1. e4 {[%clk 0:03:00]}  e6 {[%clk 0:02:59]} 2. d4 {[%clk 0:03:00]}  d5 {[%clk 0:03:00]} 3. e5 {[%clk 0:03:01]}  c5 {[%clk 0:03:00]} 4. c3 {[%clk 0:03:01]}  Nc6 {[%clk 0:03:00]} 5. Nf3 {[%clk 0:03:02]}  Qb6 {[%clk 0:02:59]} 6. Bd3 {[%clk 0:03:02]}  cxd4 {[%clk 0:02:54]} 7. O-O {[%clk 0:03:02]}  Bd7 {[%clk 0:02:52]} 8. Re1 {[%clk 0:03:02]}  Rc8 {[%clk 0:02:28]} 9. a3 {[%clk 0:03:01]}  Be7 {[%clk 0:02:23]} 10. b4 {[%clk 0:02:52]}  dxc3 {[%clk 0:02:14]} 11. Nxc3 {[%clk 0:02:52]}  Nxb4 {[%clk 0:02:11]} 12. Na4 {[%clk 0:02:51]}  Bxa4 {[%clk 0:02:06]} 13. Qxa4+ {[%clk 0:02:51]}  Nc6 {[%clk 0:02:05]} 14. Be3 {[%clk 0:02:49]}  Bc5 {[%clk 0:02:00]} 15. Rab1 {[%clk 0:01:58]}  Qa5 {[%clk 0:01:41]} 16. Qxa5 {[%clk 0:01:28]}  Nxa5 {[%clk 0:01:41]} 17. Bd2 {[%clk 0:01:29]}  Bb6 {[%clk 0:01:30]} 18. Rb5 {[%clk 0:01:15]}  Nc6 {[%clk 0:01:27]} 19. a4 {[%clk 0:01:13]}  Rb8 {[%clk 0:00:58]} 20. a5 {[%clk 0:01:04]}  Bc7 {[%clk 0:00:51]} 21. Rc1 {[%clk 0:00:35]}  Nge7 {[%clk 0:00:49]} 22. Bg5 {[%clk 0:00:32]}  Kd7 {[%clk 0:00:42]} 23. a6 {[%clk 0:00:27]}  bxa6 {[%clk 0:00:39]} 24. Rbc5 {[%clk 0:00:25]}  Bb6 {[%clk 0:00:28]} 25. R5c3 {[%clk 0:00:18]}  Rhc8 {[%clk 0:00:23]} 26. Bxa6 {[%clk 0:00:18]}  Rc7 {[%clk 0:00:23]} 27. Bb5 {[%clk 0:00:18]}  Bxf2+ {[%clk 0:00:23]} 28. Kxf2 {[%clk 0:00:15]}  Rxb5 {[%clk 0:00:23]} 29. Bxe7 {[%clk 0:00:15]}  Rb2+ {[%clk 0:00:12]} 30. Kg3 {[%clk 0:00:15]}  Kxe7 {[%clk 0:00:02]} 31. Rxc6 {[%clk 0:00:15]}  Rxc6 {[%clk 0:00:02]} 32. Rxc6 {[%clk 0:00:16]}  a5 {[%clk 0:00:01]} 33. Rc7+ {[%clk 0:00:15]}  Ke8 {[%clk 0:00:01]} 34. Nd4 {[%clk 0:00:13]} 1-0


[Site "https://www.chess.com"]

[Event "Titled Tuesday Blitz April 11 Late 2023"]
[White "Davidson, Kevin"]
[Black "Osmonbekov, Talaibek"]
[WhiteFideId "2056810"]
[BlackFideId "2017253"]
[WhiteElo "2151"]
[BlackElo "2135"]
[Result "1-0"]
[Round "08"]
[TimeControl "180+2"]
[Date "2023.04.11"]
[WhiteClock "0:00:01"]
[BlackClock "0:00:01"]

1. e4 {[%clk 0:03:00]}  c5 {[%clk 0:02:58]} 2. Nf3 {[%clk 0:02:57]}  d6 {[%clk 0:02:59]} 3. d4 {[%clk 0:02:57]}  cxd4 {[%clk 0:03:00]} 4. Nxd4 {[%clk 0:02:57]}  Nf6 {[%clk 0:03:00]} 5. Nc3 {[%clk 0:02:57]}  g6 {[%clk 0:03:01]} 6. Be3 {[%clk 0:02:57]}  Bg7 {[%clk 0:03:02]} 7. f3 {[%clk 0:02:57]}  O-O {[%clk 0:03:02]} 8. Qd2 {[%clk 0:02:57]}  Nc6 {[%clk 0:03:03]} 9. O-O-O {[%clk 0:02:57]}  d5 {[%clk 0:03:03]} 10. Qe1 {[%clk 0:02:57]}  e5 {[%clk 0:03:02]} 11. Nxc6 {[%clk 0:02:57]}  bxc6 {[%clk 0:03:03]} 12. exd5 {[%clk 0:02:58]}  Nxd5 {[%clk 0:03:04]} 13. Bc4 {[%clk 0:02:57]}  Be6 {[%clk 0:03:03]} 14. Ne4 {[%clk 0:02:55]}  Qc7 {[%clk 0:03:01]} 15. Bc5 {[%clk 0:02:54]}  Rfd8 {[%clk 0:03:00]} 16. g4 {[%clk 0:02:54]}  h6 {[%clk 0:02:47]} 17. h4 {[%clk 0:02:53]}  Rab8 {[%clk 0:02:46]} 18. h5 {[%clk 0:02:50]}  f5 {[%clk 0:02:32]} 19. gxf5 {[%clk 0:02:40]}  gxf5 {[%clk 0:02:32]} 20. Nc3 {[%clk 0:02:39]}  Nf4 {[%clk 0:02:07]} 21. Bxe6+ {[%clk 0:02:25]}  Nxe6 {[%clk 0:02:08]} 22. Ba3 {[%clk 0:01:57]}  Rxd1+ {[%clk 0:01:45]} 23. Qxd1 {[%clk 0:01:58]}  Nd4 {[%clk 0:01:46]} 24. Rg1 {[%clk 0:01:50]}  Kh7 {[%clk 0:01:37]} 25. Qd3 {[%clk 0:01:09]}  Rd8 {[%clk 0:01:12]} 26. Qe3 {[%clk 0:01:06]}  Qf7 {[%clk 0:01:04]} 27. b3 {[%clk 0:00:49]}  Bf6 {[%clk 0:00:56]} 28. Bb2 {[%clk 0:00:40]}  Bg5 {[%clk 0:00:49]} 29. Rxg5 {[%clk 0:00:40]}  hxg5 {[%clk 0:00:50]} 30. Qxg5 {[%clk 0:00:40]}  Rg8 {[%clk 0:00:48]} 31. Qe3 {[%clk 0:00:36]}  Qf6 {[%clk 0:00:26]} 32. Kb1 {[%clk 0:00:28]}  Rg2 {[%clk 0:00:21]} 33. Na4 {[%clk 0:00:18]}  Nxc2 {[%clk 0:00:15]} 34. Qxa7+ {[%clk 0:00:18]}  Rg7 {[%clk 0:00:13]} 35. Qc5 {[%clk 0:00:12]}  Nd4 {[%clk 0:00:11]} 36. Nb6 {[%clk 0:00:08]}  Rg1+ {[%clk 0:00:10]} 37. Bc1 {[%clk 0:00:08]}  Ne2 {[%clk 0:00:09]} 38. Nc4 {[%clk 0:00:03]}  Rxc1+ {[%clk 0:00:08]} 39. Kb2 {[%clk 0:00:03]}  e4+ {[%clk 0:00:08]} 40. Ka3 {[%clk 0:00:02]}  exf3 {[%clk 0:00:07]} 41. Qe3 {[%clk 0:00:02]}  Rc3 {[%clk 0:00:05]} 42. Qa7+ {[%clk 0:00:01]}  Kh6 {[%clk 0:00:05]} 43. Qb8 {[%clk 0:00:01]}  Rxc4 {[%clk 0:00:03]} 44. bxc4 {[%clk 0:00:01]}  Qe7+ {[%clk 0:00:03]} 45. Ka4 {[%clk 0:00:01]}  f2 {[%clk 0:00:03]} 46. Qh8+ {[%clk 0:00:01]}  Kg5 {[%clk 0:00:02]} 47. Qg8+ {[%clk 0:00:01]}  Kxh5 {[%clk 0:00:02]} 48. Qh8+ {[%clk 0:00:01]}  Kg4 {[%clk 0:00:02]} 49. Qb2 {[%clk 0:00:01]}  f1=Q {[%clk 0:00:01]} 50. Qg7+ {[%clk 0:00:01]} 1-0


[Site "https://www.chess.com"]

[Event "Titled Tuesday Blitz April 11 Late 2023"]
[White "Papayan, Oleg"]
[Black "Nadj Hedjesi, Balind"]
[WhiteFideId "4193911"]
[BlackFideId "934003"]
[WhiteElo "2153"]
[BlackElo "2368"]
[Result "0-1"]
[Round "08"]
[TimeControl "180+2"]
[Date "2023.04.11"]
[WhiteClock "0:01:23"]
[BlackClock "0:00:08"]

1. e4 {[%clk 0:02:57]}  c5 {[%clk 0:02:47]} 2. Ne2 {[%clk 0:02:57]}  d6 {[%clk 0:02:46]} 3. d4 {[%clk 0:02:55]}  cxd4 {[%clk 0:02:46]} 4. Nxd4 {[%clk 0:02:56]}  Nf6 {[%clk 0:02:47]} 5. Nc3 {[%clk 0:02:55]}  Bd7 {[%clk 0:02:41]} 6. Bb5 {[%clk 0:02:53]}  Nc6 {[%clk 0:02:40]} 7. Bxc6 {[%clk 0:02:53]}  bxc6 {[%clk 0:02:37]} 8. O-O {[%clk 0:02:53]}  g6 {[%clk 0:02:37]} 9. e5 {[%clk 0:02:52]}  dxe5 {[%clk 0:02:36]} 10. Nb3 {[%clk 0:02:52]}  Bg7 {[%clk 0:02:35]} 11. Re1 {[%clk 0:02:53]}  Qc7 {[%clk 0:02:33]} 12. Nc5 {[%clk 0:02:53]}  O-O {[%clk 0:02:31]} 13. Bg5 {[%clk 0:02:52]}  Rfd8 {[%clk 0:02:29]} 14. Qe2 {[%clk 0:02:47]}  h6 {[%clk 0:02:29]} 15. Bh4 {[%clk 0:02:45]}  Bf5 {[%clk 0:02:27]} 16. Bg3 {[%clk 0:02:40]}  Nd5 {[%clk 0:02:18]} 17. N3e4 {[%clk 0:02:30]}  Nf4 {[%clk 0:01:57]} 18. Bxf4 {[%clk 0:02:29]}  exf4 {[%clk 0:01:56]} 19. c3 {[%clk 0:02:30]}  g5 {[%clk 0:01:48]} 20. f3 {[%clk 0:02:28]}  e6 {[%clk 0:01:42]} 21. a4 {[%clk 0:02:25]}  a5 {[%clk 0:01:39]} 22. Rad1 {[%clk 0:02:22]}  Qb6 {[%clk 0:01:36]} 23. Qf2 {[%clk 0:02:17]}  Rxd1 {[%clk 0:01:31]} 24. Rxd1 {[%clk 0:02:18]}  Rd8 {[%clk 0:01:31]} 25. Rxd8+ {[%clk 0:02:11]}  Qxd8 {[%clk 0:01:32]} 26. Qd2 {[%clk 0:01:56]}  Qb6 {[%clk 0:01:23]} 27. Kf1 {[%clk 0:01:56]}  Bxe4 {[%clk 0:00:41]} 28. Nxe4 {[%clk 0:01:57]}  Bf8 {[%clk 0:00:38]} 29. h4 {[%clk 0:01:56]}  Be7 {[%clk 0:00:37]} 30. Qd7 {[%clk 0:01:46]}  Kf8 {[%clk 0:00:30]} 31. Qd2 {[%clk 0:01:37]}  f5 {[%clk 0:00:14]} 32. Nf2 {[%clk 0:01:34]}  Qe3 {[%clk 0:00:10]} 33. Qd7 {[%clk 0:01:30]}  Qc1+ {[%clk 0:00:09]} 34. Nd1 {[%clk 0:01:31]}  Kf7 {[%clk 0:00:09]} 35. h5 {[%clk 0:01:27]}  g4 {[%clk 0:00:09]} 36. Qxc6 {[%clk 0:01:22]}  Qxd1+ {[%clk 0:00:08]} 37. Kf2 {[%clk 0:01:23]}  g3# {[%clk 0:00:08]} 0-1


[Site "https://www.chess.com"]

[Event "Titled Tuesday Blitz April 11 Late 2023"]
[White "Novikova, Galina"]
[Black "Melikhov, Evgeny V."]
[WhiteFideId "4157095"]
[BlackFideId "4122046"]
[WhiteElo "1953"]
[BlackElo "2158"]
[Result "0-1"]
[Round "08"]
[TimeControl "180+2"]
[Date "2023.04.11"]
[WhiteClock "0:00:53"]
[BlackClock "0:01:05"]

1. e4 {[%clk 0:03:00]}  c5 {[%clk 0:02:59]} 2. Nf3 {[%clk 0:03:00]}  d6 {[%clk 0:02:59]} 3. d4 {[%clk 0:03:01]}  cxd4 {[%clk 0:02:59]} 4. Nxd4 {[%clk 0:03:02]}  Nf6 {[%clk 0:02:59]} 5. Nc3 {[%clk 0:03:02]}  a6 {[%clk 0:02:59]} 6. h3 {[%clk 0:03:03]}  e6 {[%clk 0:02:58]} 7. g4 {[%clk 0:03:03]}  b5 {[%clk 0:02:58]} 8. Bg2 {[%clk 0:03:03]}  Bb7 {[%clk 0:02:58]} 9. g5 {[%clk 0:03:04]}  Nfd7 {[%clk 0:02:56]} 10. h4 {[%clk 0:03:04]}  b4 {[%clk 0:02:45]} 11. Nce2 {[%clk 0:03:03]}  Nc6 {[%clk 0:02:40]} 12. O-O {[%clk 0:03:00]}  Nxd4 {[%clk 0:02:35]} 13. Nxd4 {[%clk 0:02:59]}  Be7 {[%clk 0:02:27]} 14. f4 {[%clk 0:02:51]}  O-O {[%clk 0:02:26]} 15. f5 {[%clk 0:02:45]}  e5 {[%clk 0:02:22]} 16. f6 {[%clk 0:02:40]}  exd4 {[%clk 0:02:17]} 17. fxe7 {[%clk 0:02:39]}  Qxe7 {[%clk 0:02:16]} 18. Qxd4 {[%clk 0:02:38]}  Nc5 {[%clk 0:02:00]} 19. Bf4 {[%clk 0:02:22]}  Rad8 {[%clk 0:01:44]} 20. Rae1 {[%clk 0:02:20]}  a5 {[%clk 0:01:39]} 21. h5 {[%clk 0:02:20]}  Ne6 {[%clk 0:01:34]} 22. Qd2 {[%clk 0:02:13]}  Nxf4 {[%clk 0:01:34]} 23. Qxf4 {[%clk 0:02:14]}  Qe5 {[%clk 0:01:33]} 24. b3 {[%clk 0:01:48]}  Qxf4 {[%clk 0:01:30]} 25. Rxf4 {[%clk 0:01:47]}  Rfe8 {[%clk 0:01:25]} 26. Kf2 {[%clk 0:01:18]}  Re5 {[%clk 0:01:24]} 27. Rf5 {[%clk 0:01:18]}  Rde8 {[%clk 0:01:22]} 28. Bf3 {[%clk 0:00:59]}  Rxf5 {[%clk 0:01:17]} 29. exf5 {[%clk 0:00:59]}  Rxe1 {[%clk 0:01:17]} 30. Bxb7 {[%clk 0:00:59]}  Re5 {[%clk 0:01:12]} 31. Bc8 {[%clk 0:00:53]}  Rc5 {[%clk 0:01:05]} 0-1


[Site "https://www.chess.com"]

[Event "Titled Tuesday Blitz April 11 Late 2023"]
[White "Gonzalez Zamora, Juan Carlos"]
[Black "Gerbelli Neto, Eduardo"]
[WhiteFideId "3507548"]
[BlackFideId "2103281"]
[WhiteElo "2535"]
[BlackElo "2178"]
[Result "1-0"]
[Round "08"]
[TimeControl "180+2"]
[Date "2023.04.11"]
[WhiteClock "0:01:17"]
[BlackClock "0:00:29"]

1. e4 {[%clk 0:03:00]}  e5 {[%clk 0:02:59]} 2. Nf3 {[%clk 0:03:00]}  Nc6 {[%clk 0:02:56]} 3. Bb5 {[%clk 0:03:00]}  a6 {[%clk 0:02:56]} 4. Ba4 {[%clk 0:03:00]}  d6 {[%clk 0:02:53]} 5. c3 {[%clk 0:02:58]}  f5 {[%clk 0:02:51]} 6. d3 {[%clk 0:02:54]}  Be7 {[%clk 0:02:51]} 7. O-O {[%clk 0:02:53]}  Nf6 {[%clk 0:02:51]} 8. Re1 {[%clk 0:02:38]}  O-O {[%clk 0:02:51]} 9. Bb3+ {[%clk 0:02:22]}  Kh8 {[%clk 0:02:51]} 10. Ng5 {[%clk 0:02:19]}  d5 {[%clk 0:02:46]} 11. exd5 {[%clk 0:02:08]}  Nxd5 {[%clk 0:02:47]} 12. Qh5 {[%clk 0:02:08]}  Bxg5 {[%clk 0:02:40]} 13. Bxg5 {[%clk 0:02:07]}  Nf6 {[%clk 0:02:38]} 14. Qe2 {[%clk 0:01:53]}  h6 {[%clk 0:02:15]} 15. Bxf6 {[%clk 0:01:48]}  Qxf6 {[%clk 0:02:16]} 16. Nd2 {[%clk 0:01:48]}  Bd7 {[%clk 0:02:04]} 17. Bd5 {[%clk 0:01:31]}  Rae8 {[%clk 0:02:01]} 18. Nc4 {[%clk 0:01:30]}  Qg6 {[%clk 0:01:37]} 19. f3 {[%clk 0:01:20]}  Be6 {[%clk 0:00:29]} 20. Bxc6 {[%clk 0:01:18]}  Bxc4 {[%clk 0:00:29]} 21. Bxe8 {[%clk 0:01:17]} 1-0


[Site "https://www.chess.com"]

[Event "Titled Tuesday Blitz April 11 Late 2023"]
[White "Petrova, Irina"]
[Black "Qashashvili, Alexandre"]
[WhiteFideId "14124122"]
[BlackFideId "13600842"]
[WhiteElo "2084"]
[BlackElo "2405"]
[Result "1/2-1/2"]
[Round "08"]
[TimeControl "180+2"]
[Date "2023.04.11"]
[WhiteClock "0:00:35"]
[BlackClock "0:00:17"]

1. e4 {[%clk 0:03:00]}  c6 {[%clk 0:03:00]} 2. d4 {[%clk 0:02:59]}  d5 {[%clk 0:02:57]} 3. Nc3 {[%clk 0:03:00]}  dxe4 {[%clk 0:02:38]} 4. Nxe4 {[%clk 0:03:01]}  Nd7 {[%clk 0:02:38]} 5. Nf3 {[%clk 0:03:00]}  Ngf6 {[%clk 0:02:38]} 6. Bd3 {[%clk 0:02:59]}  Nxe4 {[%clk 0:02:38]} 7. Bxe4 {[%clk 0:03:00]}  Nf6 {[%clk 0:02:39]} 8. Bd3 {[%clk 0:03:00]}  Bg4 {[%clk 0:02:40]} 9. c3 {[%clk 0:03:00]}  e6 {[%clk 0:02:39]} 10. h3 {[%clk 0:02:59]}  Bh5 {[%clk 0:02:40]} 11. Bg5 {[%clk 0:02:58]}  Be7 {[%clk 0:02:39]} 12. Qe2 {[%clk 0:02:54]}  O-O {[%clk 0:02:38]} 13. g4 {[%clk 0:02:52]}  Bg6 {[%clk 0:02:38]} 14. Bxf6 {[%clk 0:02:49]}  Bxf6 {[%clk 0:02:36]} 15. Bxg6 {[%clk 0:02:48]}  hxg6 {[%clk 0:02:37]} 16. h4 {[%clk 0:02:48]}  Re8 {[%clk 0:02:34]} 17. h5 {[%clk 0:02:47]}  gxh5 {[%clk 0:02:34]} 18. Rxh5 {[%clk 0:02:46]}  e5 {[%clk 0:02:31]} 19. dxe5 {[%clk 0:02:41]}  Qd5 {[%clk 0:02:27]} 20. Kf1 {[%clk 0:02:20]}  g6 {[%clk 0:02:18]} 21. Rh3 {[%clk 0:02:13]}  Bxe5 {[%clk 0:02:15]} 22. Rd1 {[%clk 0:02:08]}  Qe6 {[%clk 0:02:07]} 23. Nxe5 {[%clk 0:02:01]}  Qxe5 {[%clk 0:02:07]} 24. Qxe5 {[%clk 0:02:01]}  Rxe5 {[%clk 0:02:08]} 25. Rd7 {[%clk 0:02:00]}  b6 {[%clk 0:02:01]} 26. Rf3 {[%clk 0:02:00]}  f5 {[%clk 0:01:38]} 27. gxf5 {[%clk 0:01:59]}  Rxf5 {[%clk 0:01:38]} 28. Rxf5 {[%clk 0:01:57]}  gxf5 {[%clk 0:01:39]} 29. Kg2 {[%clk 0:01:57]}  Re8 {[%clk 0:01:29]} 30. Rxa7 {[%clk 0:01:52]}  Re2 {[%clk 0:01:28]} 31. b3 {[%clk 0:01:51]}  b5 {[%clk 0:01:17]} 32. Kf3 {[%clk 0:01:49]}  Rc2 {[%clk 0:01:15]} 33. Rc7 {[%clk 0:01:37]}  Rxc3+ {[%clk 0:01:11]} 34. Kf4 {[%clk 0:01:20]}  Rc2 {[%clk 0:01:02]} 35. f3 {[%clk 0:01:11]}  Rc5 {[%clk 0:00:42]} 36. Kg5 {[%clk 0:01:06]}  Kf8 {[%clk 0:00:36]} 37. f4 {[%clk 0:01:06]}  Ke8 {[%clk 0:00:35]} 38. Kf6 {[%clk 0:01:02]}  Kd8 {[%clk 0:00:33]} 39. Ra7 {[%clk 0:01:00]}  Rd5 {[%clk 0:00:30]} 40. a4 {[%clk 0:00:58]}  bxa4 {[%clk 0:00:29]} 41. Rxa4 {[%clk 0:00:59]}  Rb5 {[%clk 0:00:26]} 42. Rc4 {[%clk 0:00:57]}  Rxb3 {[%clk 0:00:21]} 43. Rxc6 {[%clk 0:00:56]}  Rb5 {[%clk 0:00:17]} 44. Re6 {[%clk 0:00:55]}  Kd7 {[%clk 0:00:16]} 45. Re5 {[%clk 0:00:54]}  Rxe5 {[%clk 0:00:14]} 46. Kxe5 {[%clk 0:00:35]}  Ke7 {[%clk 0:00:14]} 47. Kxf5 {[%clk 0:00:35]}  Kf7 {[%clk 0:00:15]} 48. Kg5 {[%clk 0:00:36]}  Kg7 {[%clk 0:00:15]} 49. f5 {[%clk 0:00:35]}  Kf7 {[%clk 0:00:15]} 50. f6 {[%clk 0:00:35]}  Kf8 {[%clk 0:00:15]} 51. Kg6 {[%clk 0:00:36]}  Kg8 {[%clk 0:00:15]} 52. f7+ {[%clk 0:00:36]}  Kf8 {[%clk 0:00:16]} 53. Kh7 {[%clk 0:00:35]}  Kxf7 {[%clk 0:00:17]} 1/2-1/2


[Site "https://www.chess.com"]

[Event "Titled Tuesday Blitz April 11 Late 2023"]
[White "Weisz, Bryan"]
[Black "Chemin, Justo Reinaldo"]
[WhiteFideId "30934133"]
[BlackFideId "2101580"]
[WhiteElo "1973"]
[BlackElo "1940"]
[Result "0-1"]
[Round "08"]
[TimeControl "180+2"]
[Date "2023.04.11"]
[WhiteClock "0:00:05"]
[BlackClock "0:00:56"]

1. e4 {[%clk 0:03:00]}  e6 {[%clk 0:02:58]} 2. Nf3 {[%clk 0:03:00]}  d5 {[%clk 0:02:58]} 3. d3 {[%clk 0:02:50]}  dxe4 {[%clk 0:02:56]} 4. dxe4 {[%clk 0:02:42]}  Qxd1+ {[%clk 0:02:55]} 5. Kxd1 {[%clk 0:02:42]}  Bc5 {[%clk 0:02:52]} 6. Ke1 {[%clk 0:02:10]}  Nf6 {[%clk 0:02:51]} 7. Nfd2 {[%clk 0:02:02]}  Ng4 {[%clk 0:02:39]} 8. Be2 {[%clk 0:01:21]}  Bxf2+ {[%clk 0:02:18]} 9. Kf1 {[%clk 0:01:21]}  Ne3+ {[%clk 0:02:17]} 10. Kxf2 {[%clk 0:01:21]}  Nxc2 {[%clk 0:02:17]} 11. b3 {[%clk 0:01:01]}  Nxa1 {[%clk 0:02:18]} 12. Na3 {[%clk 0:00:38]}  O-O {[%clk 0:02:08]} 13. Bb2 {[%clk 0:00:38]}  Rd8 {[%clk 0:02:07]} 14. Nf3 {[%clk 0:00:33]}  Nxb3 {[%clk 0:02:03]} 15. axb3 {[%clk 0:00:33]}  c6 {[%clk 0:01:58]} 16. Nc4 {[%clk 0:00:32]}  b5 {[%clk 0:01:48]} 17. Na5 {[%clk 0:00:31]}  a6 {[%clk 0:01:40]} 18. Rc1 {[%clk 0:00:25]}  Bd7 {[%clk 0:01:39]} 19. Ne5 {[%clk 0:00:22]}  Be8 {[%clk 0:01:39]} 20. Naxc6 {[%clk 0:00:20]}  Nxc6 {[%clk 0:01:39]} 21. Nxc6 {[%clk 0:00:20]}  Bxc6 {[%clk 0:01:34]} 22. Rxc6 {[%clk 0:00:21]}  Rdc8 {[%clk 0:01:31]} 23. Rxc8+ {[%clk 0:00:21]}  Rxc8 {[%clk 0:01:30]} 24. Ke3 {[%clk 0:00:21]}  Rc2 {[%clk 0:01:29]} 25. Ba3 {[%clk 0:00:20]}  Rc3+ {[%clk 0:01:29]} 26. Kd2 {[%clk 0:00:18]}  Rxb3 {[%clk 0:01:29]} 27. Bc5 {[%clk 0:00:18]}  Rb2+ {[%clk 0:01:27]} 28. Ke3 {[%clk 0:00:18]}  a5 {[%clk 0:01:26]} 29. Bd4 {[%clk 0:00:17]}  Rb3+ {[%clk 0:01:25]} 30. Kd2 {[%clk 0:00:17]}  a4 {[%clk 0:01:25]} 31. Kc2 {[%clk 0:00:16]}  Rb4 {[%clk 0:01:20]} 32. Kc3 {[%clk 0:00:14]}  Rb3+ {[%clk 0:01:16]} 33. Kc2 {[%clk 0:00:14]}  Rb4 {[%clk 0:01:12]} 34. Kc3 {[%clk 0:00:14]}  Rb1 {[%clk 0:01:09]} 35. Kc2 {[%clk 0:00:15]}  Rb3 {[%clk 0:01:05]} 36. Bb2 {[%clk 0:00:11]}  Re3 {[%clk 0:01:02]} 37. Bxb5 {[%clk 0:00:11]}  Rxe4 {[%clk 0:01:01]} 38. Bc3 {[%clk 0:00:07]}  a3 {[%clk 0:00:59]} 39. Kb3 {[%clk 0:00:07]}  Re3 {[%clk 0:00:58]} 40. Bc4 {[%clk 0:00:05]}  a2 {[%clk 0:00:57]} 41. Kxa2 {[%clk 0:00:05]}  Rxc3 {[%clk 0:00:56]} 0-1


[Site "https://www.chess.com"]

[Event "Titled Tuesday Blitz April 11 Late 2023"]
[White "Bulgurlu, Okan"]
[Black "Tarnowska, Aleksandra"]
[WhiteFideId "6352316"]
[BlackFideId "1180967"]
[WhiteElo "1908"]
[BlackElo "1776"]
[Result "0-1"]
[Round "08"]
[TimeControl "180+2"]
[Date "2023.04.11"]
[WhiteClock "0:00:09"]
[BlackClock "0:00:17"]

1. e4 {[%clk 0:02:58]}  c5 {[%clk 0:02:59]} 2. Nf3 {[%clk 0:02:58]}  e6 {[%clk 0:03:00]} 3. c3 {[%clk 0:02:58]}  d5 {[%clk 0:02:58]} 4. exd5 {[%clk 0:02:58]}  Qxd5 {[%clk 0:02:59]} 5. d4 {[%clk 0:02:59]}  Nf6 {[%clk 0:02:57]} 6. Na3 {[%clk 0:02:57]}  a6 {[%clk 0:02:54]} 7. Bc4 {[%clk 0:02:54]}  Qd6 {[%clk 0:02:53]} 8. O-O {[%clk 0:02:53]}  Be7 {[%clk 0:02:51]} 9. Be3 {[%clk 0:02:51]}  cxd4 {[%clk 0:02:51]} 10. Bxd4 {[%clk 0:02:41]}  O-O {[%clk 0:02:50]} 11. Bd3 {[%clk 0:02:33]}  Nc6 {[%clk 0:02:48]} 12. Bxf6 {[%clk 0:02:31]}  gxf6 {[%clk 0:02:32]} 13. Nc4 {[%clk 0:02:29]}  Qf4 {[%clk 0:02:30]} 14. Re1 {[%clk 0:02:23]}  f5 {[%clk 0:02:26]} 15. g3 {[%clk 0:02:06]}  Qh6 {[%clk 0:02:23]} 16. Nb6 {[%clk 0:01:54]}  Rb8 {[%clk 0:02:17]} 17. Qa4 {[%clk 0:01:50]}  Bc5 {[%clk 0:01:56]} 18. Nxc8 {[%clk 0:01:39]}  Rbxc8 {[%clk 0:01:51]} 19. Rad1 {[%clk 0:01:33]}  b5 {[%clk 0:01:45]} 20. Qxa6 {[%clk 0:01:30]}  b4 {[%clk 0:01:36]} 21. Qb5 {[%clk 0:01:10]}  Be7 {[%clk 0:01:23]} 22. Nd4 {[%clk 0:00:43]}  Nxd4 {[%clk 0:01:16]} 23. cxd4 {[%clk 0:00:44]}  Rfd8 {[%clk 0:01:10]} 24. Bxf5 {[%clk 0:00:38]}  Rd5 {[%clk 0:00:41]} 25. Qa6 {[%clk 0:00:27]}  Rcd8 {[%clk 0:00:40]} 26. Be4 {[%clk 0:00:13]}  Rxd4 {[%clk 0:00:37]} 27. Rxd4 {[%clk 0:00:13]}  Rxd4 {[%clk 0:00:38]} 28. Qc8+ {[%clk 0:00:13]}  Kg7 {[%clk 0:00:39]} 29. Qc7 {[%clk 0:00:09]}  Qd2 {[%clk 0:00:37]} 30. Re3 {[%clk 0:00:04]}  Bg5 {[%clk 0:00:30]} 31. Qe5+ {[%clk 0:00:03]}  Bf6 {[%clk 0:00:30]} 32. Qh5 {[%clk 0:00:03]}  Qc1+ {[%clk 0:00:29]} 33. Kg2 {[%clk 0:00:03]}  h6 {[%clk 0:00:21]} 34. Qg4+ {[%clk 0:00:03]}  Kf8 {[%clk 0:00:21]} 35. Qf4 {[%clk 0:00:03]}  Bg5 {[%clk 0:00:19]} 36. Qb8+ {[%clk 0:00:03]}  Kg7 {[%clk 0:00:20]} 37. Qe5+ {[%clk 0:00:02]}  Bf6 {[%clk 0:00:21]} 38. Qf4 {[%clk 0:00:01]}  Qc4 {[%clk 0:00:12]} 39. Qg4+ {[%clk 0:00:02]}  Kf8 {[%clk 0:00:12]} 40. Qf3 {[%clk 0:00:02]}  Ke7 {[%clk 0:00:12]} 41. Qf4 {[%clk 0:00:03]}  Bg5 {[%clk 0:00:12]} 42. Qf3 {[%clk 0:00:03]}  Bxe3 {[%clk 0:00:12]} 43. Bd5 {[%clk 0:00:03]}  Qxd5 {[%clk 0:00:12]} 44. Qxd5 {[%clk 0:00:04]}  exd5 {[%clk 0:00:12]} 45. fxe3 {[%clk 0:00:05]}  Rd2+ {[%clk 0:00:13]} 46. Kf3 {[%clk 0:00:05]}  Rxb2 {[%clk 0:00:14]} 47. h4 {[%clk 0:00:05]}  Rxa2 {[%clk 0:00:14]} 48. g4 {[%clk 0:00:05]}  b3 {[%clk 0:00:15]} 49. g5 {[%clk 0:00:06]}  hxg5 {[%clk 0:00:16]} 50. h5 {[%clk 0:00:06]}  b2 {[%clk 0:00:16]} 51. h6 {[%clk 0:00:07]}  b1=Q {[%clk 0:00:16]} 52. h7 {[%clk 0:00:08]}  Rh2 {[%clk 0:00:16]} 53. Kg4 {[%clk 0:00:09]}  Rxh7 {[%clk 0:00:17]} 54. Kxg5 {[%clk 0:00:09]}  Qg1+ {[%clk 0:00:17]} 0-1


[Site "https://www.chess.com"]

[Event "Titled Tuesday Blitz April 11 Late 2023"]
[White "Vargas, Mauricio"]
[Black "Stanisz, Patryk"]
[WhiteFideId "4404572"]
[BlackFideId "1123106"]
[WhiteElo "1998"]
[BlackElo "2069"]
[Result "0-1"]
[Round "08"]
[TimeControl "180+2"]
[Date "2023.04.11"]
[WhiteClock "0:00:04"]
[BlackClock "0:00:41"]

1. e4 {[%clk 0:02:59]}  c5 {[%clk 0:02:59]} 2. Nc3 {[%clk 0:02:58]}  Nc6 {[%clk 0:02:59]} 3. f4 {[%clk 0:02:57]}  g6 {[%clk 0:02:58]} 4. Nf3 {[%clk 0:02:58]}  Bg7 {[%clk 0:02:58]} 5. Bb5 {[%clk 0:02:58]}  Nd4 {[%clk 0:02:58]} 6. O-O {[%clk 0:02:48]}  Nxb5 {[%clk 0:02:55]} 7. Nxb5 {[%clk 0:02:49]}  a6 {[%clk 0:02:53]} 8. Nc3 {[%clk 0:02:48]}  e6 {[%clk 0:02:49]} 9. d3 {[%clk 0:02:47]}  Ne7 {[%clk 0:02:48]} 10. Qe1 {[%clk 0:02:44]}  b5 {[%clk 0:02:47]} 11. Ne2 {[%clk 0:02:43]}  Bb7 {[%clk 0:02:46]} 12. c3 {[%clk 0:02:43]}  c4 {[%clk 0:02:42]} 13. Qd2 {[%clk 0:02:26]}  Qb6+ {[%clk 0:02:32]} 14. Kh1 {[%clk 0:02:18]}  O-O {[%clk 0:02:19]} 15. Ng3 {[%clk 0:02:08]}  cxd3 {[%clk 0:02:16]} 16. Qxd3 {[%clk 0:02:07]}  Rad8 {[%clk 0:02:12]} 17. Be3 {[%clk 0:02:06]}  Qc7 {[%clk 0:02:08]} 18. f5 {[%clk 0:01:58]}  d5 {[%clk 0:01:56]} 19. fxe6 {[%clk 0:01:10]}  dxe4 {[%clk 0:01:43]} 20. exf7+ {[%clk 0:01:10]}  Rxf7 {[%clk 0:01:40]} 21. Qc2 {[%clk 0:00:40]}  exf3 {[%clk 0:01:36]} 22. gxf3 {[%clk 0:00:35]}  Rxf3 {[%clk 0:01:27]} 23. Qb3+ {[%clk 0:00:28]}  Bd5 {[%clk 0:01:22]} 24. Qxd5+ {[%clk 0:00:20]}  Nxd5 {[%clk 0:01:18]} 25. Rxf3 {[%clk 0:00:21]}  Nxe3 {[%clk 0:01:13]} 26. Rxe3 {[%clk 0:00:22]}  Be5 {[%clk 0:01:07]} 27. Rae1 {[%clk 0:00:23]}  Bxg3 {[%clk 0:01:07]} 28. Rxg3 {[%clk 0:00:22]}  Rd2 {[%clk 0:01:03]} 29. Rg2 {[%clk 0:00:16]}  Rxg2 {[%clk 0:01:00]} 30. Kxg2 {[%clk 0:00:17]}  Qf4 {[%clk 0:00:55]} 31. Re2 {[%clk 0:00:17]}  g5 {[%clk 0:00:49]} 32. Rf2 {[%clk 0:00:14]}  Qe4+ {[%clk 0:00:48]} 33. Kf1 {[%clk 0:00:13]}  h5 {[%clk 0:00:45]} 34. Rg2 {[%clk 0:00:12]}  g4 {[%clk 0:00:43]} 35. Re2 {[%clk 0:00:05]}  Qh1+ {[%clk 0:00:41]} 36. Kf2 {[%clk 0:00:05]}  Qxh2+ {[%clk 0:00:41]} 37. Ke3 {[%clk 0:00:05]}  Qe5+ {[%clk 0:00:41]} 38. Kd2 {[%clk 0:00:04]}  Qd5+ {[%clk 0:00:41]} 0-1


[Site "https://www.chess.com"]